[Event "Late-Titled-Tuesday-Blitz-February-06-2024"]
[Site "Chess.com"]
[Date "2024.02.06"]
[Round "9"]
[White "Baronessa08"]
[Black "Ajedrez_con_German"]
[Result "1-0"]
[WhiteElo "2544"]
[BlackElo "2652"]
[TimeControl "180+1"]
[EndTime "15:45:57 PST"]
[Termination "Baronessa08 won on time"]

1. Nf3 {[%clk 0:03:00.9]} 1... Nf6 {[%clk 0:02:44.3]} 2. d4 {[%clk 0:02:59.8]}
2... d5 {[%clk 0:02:40.6]} 3. c4 {[%clk 0:02:58]} 3... c6 {[%clk 0:02:38.2]} 4.
e3 {[%clk 0:02:57.5]} 4... Bg4 {[%clk 0:02:37.2]} 5. Nc3 {[%clk 0:02:57.3]} 5...
e6 {[%clk 0:02:37.3]} 6. Be2 {[%clk 0:02:56.9]} 6... Nbd7 {[%clk 0:02:37.2]} 7.
cxd5 {[%clk 0:02:55]} 7... exd5 {[%clk 0:02:34.3]} 8. h3 {[%clk 0:02:53.5]} 8...
Bxf3 {[%clk 0:02:18.8]} 9. Bxf3 {[%clk 0:02:53.3]} 9... Bd6 {[%clk 0:02:18.9]}
10. g3 {[%clk 0:02:46]} 10... O-O {[%clk 0:02:19]} 11. h4 {[%clk 0:02:46.1]}
11... Re8 {[%clk 0:02:19.4]} 12. O-O {[%clk 0:02:41.7]} 12... Qe7 {[%clk
0:02:18.9]} 13. Bg2 {[%clk 0:02:41.6]} 13... Nb6 {[%clk 0:02:15]} 14. Qf3 {[%clk
0:02:38.4]} 14... Bb4 {[%clk 0:02:09.9]} 15. Qf5 {[%clk 0:02:27.7]} 15... Nc4
{[%clk 0:02:06.8]} 16. Qd3 {[%clk 0:02:23.3]} 16... Nd6 {[%clk 0:02:04.1]} 17.
b3 {[%clk 0:02:19.1]} 17... Rad8 {[%clk 0:02:02.1]} 18. Bd2 {[%clk 0:02:07]}
18... h6 {[%clk 0:01:59.3]} 19. Rfc1 {[%clk 0:02:04.2]} 19... Nde4 {[%clk
0:01:52.1]} 20. Nxe4 {[%clk 0:02:03.4]} 20... dxe4 {[%clk 0:01:39.9]} 21. Qc2
{[%clk 0:02:01.9]} 21... Bxd2 {[%clk 0:01:28.2]} 22. Qxd2 {[%clk 0:02:02.8]}
22... Nd5 {[%clk 0:01:27.9]} 23. Rc5 {[%clk 0:01:58.2]} 23... f5 {[%clk
0:01:24.8]} 24. Rac1 {[%clk 0:01:48.3]} 24... Kh8 {[%clk 0:01:08.3]} 25. b4
{[%clk 0:01:48]} 25... f4 {[%clk 0:01:04.4]} 26. gxf4 {[%clk 0:01:36.8]} 26...
Qxh4 {[%clk 0:01:03.4]} 27. b5 {[%clk 0:01:32.3]} 27... cxb5 {[%clk 0:00:46.5]}
28. Rxb5 {[%clk 0:01:24.1]} 28... b6 {[%clk 0:00:42.4]} 29. Rc6 {[%clk
0:01:11.1]} 29... Re7 {[%clk 0:00:31.7]} 30. Rb3 {[%clk 0:00:53.1]} 30... Nf6
{[%clk 0:00:28.5]} 31. f3 {[%clk 0:00:49.4]} 31... exf3 {[%clk 0:00:27.4]} 32.
Bxf3 {[%clk 0:00:49.3]} 32... Rde8 {[%clk 0:00:27.8]} 33. d5 {[%clk 0:00:39.3]}
33... Qg3+ {[%clk 0:00:27.7]} 34. Qg2 {[%clk 0:00:37.8]} 34... Qe1+ {[%clk
0:00:27.8]} 35. Qf1 {[%clk 0:00:32.4]} 35... Qg3+ {[%clk 0:00:27.8]} 36. Qg2
{[%clk 0:00:30]} 36... Qe1+ {[%clk 0:00:27.3]} 37. Qf1 {[%clk 0:00:30.3]} 37...
Qxf1+ {[%clk 0:00:27.5]} 38. Kxf1 {[%clk 0:00:30.4]} 38... Rxe3 {[%clk
0:00:28.4]} 39. d6 {[%clk 0:00:20.9]} 39... Rxb3 {[%clk 0:00:23.9]} 40. axb3
{[%clk 0:00:21.8]} 40... Rd8 {[%clk 0:00:24.3]} 41. Bg2 {[%clk 0:00:05.4]} 41...
Kg8 {[%clk 0:00:19.5]} 42. Bh3 {[%clk 0:00:05.6]} 42... Kf7 {[%clk 0:00:19.3]}
43. Rc7+ {[%clk 0:00:05.6]} 43... Kg6 {[%clk 0:00:19.7]} 44. d7 {[%clk 0:00:05]}
44... a5 {[%clk 0:00:16.9]} 45. Rc8 {[%clk 0:00:04.6]} 45... Rxd7 {[%clk
0:00:15.1]} 46. Bxd7 {[%clk 0:00:04.6]} 46... Nxd7 {[%clk 0:00:16]} 47. Rc7
{[%clk 0:00:04.7]} 47... Nc5 {[%clk 0:00:14.7]} 48. Rc6+ {[%clk 0:00:04.8]}
48... Kf5 {[%clk 0:00:15.1]} 49. Rxb6 {[%clk 0:00:05.7]} 49... Kxf4 {[%clk
0:00:15.4]} 50. Rb5 {[%clk 0:00:06.1]} 50... Ne4 {[%clk 0:00:15.2]} 51. Rxa5
{[%clk 0:00:06.3]} 51... g5 {[%clk 0:00:15.9]} 52. Ra4 {[%clk 0:00:06]} 52... g4
{[%clk 0:00:15.9]} 53. Kg2 {[%clk 0:00:06.1]} 53... h5 {[%clk 0:00:16.3]} 54.
Ra8 {[%clk 0:00:05.8]} 54... h4 {[%clk 0:00:16.7]} 55. Rf8+ {[%clk 0:00:05.8]}
55... Ke3 {[%clk 0:00:17.2]} 56. Rg8 {[%clk 0:00:06.2]} 56... h3+ {[%clk
0:00:17]} 57. Kh2 {[%clk 0:00:06.6]} 57... Kf4 {[%clk 0:00:17]} 58. Rf8+ {[%clk
0:00:06.5]} 58... Ke3 {[%clk 0:00:17.2]} 59. Rg8 {[%clk 0:00:06.4]} 59... Kf4
{[%clk 0:00:17.5]} 60. Rf8+ {[%clk 0:00:06.9]} 60... Ke3 {[%clk 0:00:17.8]} 61.
b4 {[%clk 0:00:06.8]} 61... Ng5 {[%clk 0:00:16.1]} 62. Rg8 {[%clk 0:00:05.9]}
62... Nf3+ {[%clk 0:00:15.6]} 63. Kh1 {[%clk 0:00:05.7]} 63... Kf2 {[%clk
0:00:15.4]} 64. Rxg4 {[%clk 0:00:05.3]} 64... Ne5 {[%clk 0:00:10.2]} 65. Re4
{[%clk 0:00:05]} 65... Nd3 {[%clk 0:00:05.4]} 66. b5 {[%clk 0:00:04.4]} 66...
Kg3 {[%clk 0:00:05.2]} 67. Re3+ {[%clk 0:00:04.8]} 1-0

[Event "Late-Titled-Tuesday-Blitz-February-06-2024"]
[Site "Chess.com"]
[Date "2024.02.06"]
[Round "9"]
[White "tptagain"]
[Black "DanielNaroditsky"]
[Result "1/2-1/2"]
[WhiteElo "2969"]
[BlackElo "3198"]
[TimeControl "180+1"]
[EndTime "15:46:05 PST"]
[Termination "Game drawn by repetition"]

1. Nf3 {[%clk 0:03:00.9]} 1... Nf6 {[%clk 0:02:57.7]} 2. d4 {[%clk 0:03:01]}
2... g6 {[%clk 0:02:56.9]} 3. Bg5 {[%clk 0:03:00.8]} 3... Bg7 {[%clk 0:02:56.8]}
4. Nbd2 {[%clk 0:03:01.3]} 4... O-O {[%clk 0:02:56.6]} 5. e4 {[%clk 0:03:01.4]}
5... d5 {[%clk 0:02:55.1]} 6. exd5 {[%clk 0:03:02.3]} 6... Nxd5 {[%clk
0:02:52.1]} 7. c3 {[%clk 0:03:02.5]} 7... Nd7 {[%clk 0:02:46.7]} 8. Bc4 {[%clk
0:03:01.6]} 8... N7b6 {[%clk 0:02:35.2]} 9. Bb3 {[%clk 0:03:01.7]} 9... h6
{[%clk 0:02:34.8]} 10. Bh4 {[%clk 0:02:57.2]} 10... Bf5 {[%clk 0:02:30.9]} 11.
O-O {[%clk 0:02:53]} 11... c6 {[%clk 0:02:20.2]} 12. Re1 {[%clk 0:02:51.3]}
12... Qc7 {[%clk 0:01:58.8]} 13. Bg3 {[%clk 0:02:47]} 13... Qd8 {[%clk
0:01:55.9]} 14. Be5 {[%clk 0:02:42.7]} 14... Nd7 {[%clk 0:01:42.6]} 15. Bxg7
{[%clk 0:02:40.6]} 15... Kxg7 {[%clk 0:01:43.5]} 16. h3 {[%clk 0:02:35.6]} 16...
N7f6 {[%clk 0:01:36.5]} 17. Ne5 {[%clk 0:02:17.6]} 17... Qc7 {[%clk 0:01:36.9]}
18. Qf3 {[%clk 0:02:16.2]} 18... Rad8 {[%clk 0:01:33.5]} 19. Nf1 {[%clk
0:01:59.5]} 19... Be6 {[%clk 0:01:00.1]} 20. Bc2 {[%clk 0:01:41.1]} 20... Nd7
{[%clk 0:00:55.2]} 21. Qg3 {[%clk 0:01:15.9]} 21... Nxe5 {[%clk 0:00:51]} 22.
Rxe5 {[%clk 0:01:16.1]} 22... Qd7 {[%clk 0:00:38.2]} 23. Rae1 {[%clk 0:01:10]}
23... Nc7 {[%clk 0:00:33.9]} 24. h4 {[%clk 0:01:06.3]} 24... Rg8 {[%clk
0:00:24.1]} 25. h5 {[%clk 0:00:48.5]} 25... g5 {[%clk 0:00:24.5]} 26. Bb3 {[%clk
0:00:48.3]} 26... Rde8 {[%clk 0:00:20]} 27. Bxe6 {[%clk 0:00:34.7]} 27... Nxe6
{[%clk 0:00:20.9]} 28. Ne3 {[%clk 0:00:34.6]} 28... Kh7 {[%clk 0:00:16.6]} 29.
Nf5 {[%clk 0:00:33]} 29... g4 {[%clk 0:00:16.3]} 30. Qd3 {[%clk 0:00:26.2]}
30... Kh8 {[%clk 0:00:07.3]} 31. Qd2 {[%clk 0:00:26.1]} 31... Rg5 {[%clk
0:00:03.9]} 32. Nxh6 {[%clk 0:00:26.5]} 32... Rg7 {[%clk 0:00:02.4]} 33. Nxf7+
{[%clk 0:00:23.6]} 33... Rxf7 {[%clk 0:00:03.3]} 34. Rxe6 {[%clk 0:00:23.5]}
34... Rg7 {[%clk 0:00:04.1]} 35. Qh6+ {[%clk 0:00:22.6]} 35... Kg8 {[%clk
0:00:04.5]} 36. Rg6 {[%clk 0:00:23.1]} 36... e6 {[%clk 0:00:05.1]} 37. Rxg7+
{[%clk 0:00:22.1]} 37... Qxg7 {[%clk 0:00:06]} 38. Qxg7+ {[%clk 0:00:19.4]}
38... Kxg7 {[%clk 0:00:06.9]} 39. Re4 {[%clk 0:00:19.8]} 39... Kh6 {[%clk
0:00:05.7]} 40. Rxg4 {[%clk 0:00:19.9]} 40... Kxh5 {[%clk 0:00:06.2]} 41. Re4
{[%clk 0:00:20.3]} 41... Kg5 {[%clk 0:00:05.8]} 42. g4 {[%clk 0:00:19.6]} 42...
Kf6 {[%clk 0:00:04.9]} 43. Kg2 {[%clk 0:00:19.4]} 43... a5 {[%clk 0:00:04.2]}
44. f4 {[%clk 0:00:18.3]} 44... Rh8 {[%clk 0:00:03.6]} 45. a4 {[%clk 0:00:14]}
45... b6 {[%clk 0:00:03.6]} 46. Re5 {[%clk 0:00:14]} 46... Rh4 {[%clk
0:00:03.4]} 47. g5+ {[%clk 0:00:13.7]} 47... Kf7 {[%clk 0:00:04.1]} 48. Re4
{[%clk 0:00:08.2]} 48... Rg4+ {[%clk 0:00:02.3]} 49. Kf3 {[%clk 0:00:08.5]}
49... Rg1 {[%clk 0:00:02.8]} 50. Re2 {[%clk 0:00:05]} 50... Rf1+ {[%clk
0:00:02.9]} 51. Ke4 {[%clk 0:00:05.3]} 51... Ke7 {[%clk 0:00:02.7]} 52. Rh2
{[%clk 0:00:04.8]} 52... Re1+ {[%clk 0:00:02.7]} 53. Kd3 {[%clk 0:00:05.2]}
53... Rf1 {[%clk 0:00:02.9]} 54. Rh4 {[%clk 0:00:03.8]} 54... Kd6 {[%clk
0:00:03]} 55. b3 {[%clk 0:00:04]} 55... Rg1 {[%clk 0:00:03.1]} 56. Kc4 {[%clk
0:00:03.7]} 56... Rg3 {[%clk 0:00:03.5]} 57. b4 {[%clk 0:00:03.8]} 57... axb4
{[%clk 0:00:02.9]} 58. Kxb4 {[%clk 0:00:03.8]} 58... Kd5 {[%clk 0:00:02.6]} 59.
Rh6 {[%clk 0:00:02.1]} 59... c5+ {[%clk 0:00:02.9]} 60. dxc5 {[%clk 0:00:02.6]}
60... bxc5+ {[%clk 0:00:03.8]} 61. Kb3 {[%clk 0:00:03.2]} 61... Rg4 {[%clk
0:00:04.6]} 62. Rf6 {[%clk 0:00:03.3]} 62... e5 {[%clk 0:00:03.3]} 63. fxe5
{[%clk 0:00:03.3]} 63... Rxg5 {[%clk 0:00:03.1]} 64. e6 {[%clk 0:00:03.4]} 64...
Re5 {[%clk 0:00:02.4]} 65. a5 {[%clk 0:00:02.6]} 65... Re1 {[%clk 0:00:02.1]}
66. Kb2 {[%clk 0:00:02.3]} 66... Kc4 {[%clk 0:00:02.4]} 67. Rh6 {[%clk
0:00:01.7]} 67... Kb5 {[%clk 0:00:02.3]} 68. Rg6 {[%clk 0:00:01.4]} 68... Kxa5
{[%clk 0:00:02.5]} 69. Kb3 {[%clk 0:00:01.6]} 69... Kb5 {[%clk 0:00:03.2]} 70.
Kc2 {[%clk 0:00:02.1]} 70... Kc4 {[%clk 0:00:03.1]} 71. Kd2 {[%clk 0:00:02.5]}
71... Re5 {[%clk 0:00:03.8]} 72. Rg4+ {[%clk 0:00:02.4]} 72... Kd5 {[%clk
0:00:04.1]} 73. Rg6 {[%clk 0:00:02.6]} 73... Rxe6 {[%clk 0:00:03.2]} 74. Rxe6
{[%clk 0:00:03]} 74... Kxe6 {[%clk 0:00:04.1]} 75. Kd3 {[%clk 0:00:03.2]} 75...
Kd5 {[%clk 0:00:04.6]} 76. c4+ {[%clk 0:00:03.6]} 76... Ke5 {[%clk 0:00:05]} 77.
Ke3 {[%clk 0:00:04.2]} 77... Kf5 {[%clk 0:00:05.7]} 78. Kf3 {[%clk 0:00:04.7]}
78... Ke5 {[%clk 0:00:06.5]} 79. Ke3 {[%clk 0:00:05.3]} 79... Kf5 {[%clk
0:00:07.2]} 80. Kf3 {[%clk 0:00:05.9]} 80... Ke5 {[%clk 0:00:07.9]} 81. Ke3
{[%clk 0:00:06.4]} 1/2-1/2

[Event "Late-Titled-Tuesday-Blitz-February-06-2024"]
[Site "Chess.com"]
[Date "2024.02.06"]
[Round "9"]
[White "delqate"]
[Black "Escanor89"]
[Result "0-1"]
[WhiteElo "2364"]
[BlackElo "2524"]
[TimeControl "180+1"]
[EndTime "15:46:28 PST"]
[Termination "Escanor89 won on time"]

1. d4 {[%clk 0:02:59.9]} 1... Nf6 {[%clk 0:02:58.6]} 2. Bf4 {[%clk 0:02:59.8]}
2... e6 {[%clk 0:02:57.6]} 3. e3 {[%clk 0:02:58.9]} 3... Bd6 {[%clk 0:02:57]} 4.
Bg3 {[%clk 0:02:56.4]} 4... b6 {[%clk 0:02:48.6]} 5. Be2 {[%clk 0:02:50.5]} 5...
Bb7 {[%clk 0:02:47.6]} 6. Bf3 {[%clk 0:02:50.7]} 6... Qc8 {[%clk 0:02:46]} 7.
Bxb7 {[%clk 0:02:47.6]} 7... Qxb7 {[%clk 0:02:46.2]} 8. Qf3 {[%clk 0:02:48.3]}
8... Qxf3 {[%clk 0:02:44.9]} 9. Nxf3 {[%clk 0:02:49.2]} 9... Nc6 {[%clk
0:02:31.5]} 10. a3 {[%clk 0:02:44.8]} 10... Bxg3 {[%clk 0:02:26.9]} 11. hxg3
{[%clk 0:02:45.7]} 11... d6 {[%clk 0:02:24.7]} 12. c4 {[%clk 0:02:44.7]} 12...
a5 {[%clk 0:02:22.9]} 13. Nc3 {[%clk 0:02:43.2]} 13... h6 {[%clk 0:02:18.6]} 14.
Nb5 {[%clk 0:02:40.2]} 14... Kd7 {[%clk 0:02:16.6]} 15. Ke2 {[%clk 0:02:38.4]}
15... Na7 {[%clk 0:02:14]} 16. Nc3 {[%clk 0:02:34.8]} 16... Rhb8 {[%clk
0:02:08.1]} 17. b4 {[%clk 0:02:08.8]} 17... axb4 {[%clk 0:02:03.4]} 18. axb4
{[%clk 0:02:09.7]} 18... Nc6 {[%clk 0:02:01]} 19. b5 {[%clk 0:02:08.2]} 19...
Na5 {[%clk 0:01:53.7]} 20. Kd3 {[%clk 0:02:07]} 20... Ra7 {[%clk 0:01:48.3]} 21.
Ra3 {[%clk 0:01:55.7]} 21... Ng4 {[%clk 0:01:34.9]} 22. Ke2 {[%clk 0:01:31.2]}
22... Rba8 {[%clk 0:01:33.9]} 23. Rha1 {[%clk 0:01:31.2]} 23... Kc8 {[%clk
0:01:33.6]} 24. Nd2 {[%clk 0:01:29.4]} 24... Kb8 {[%clk 0:01:30.5]} 25. f3
{[%clk 0:01:27.9]} 25... Nf6 {[%clk 0:01:30.6]} 26. Kd3 {[%clk 0:01:16.6]} 26...
Nb7 {[%clk 0:00:59.7]} 27. Rxa7 {[%clk 0:01:07.5]} 27... Rxa7 {[%clk 0:01:00.6]}
28. Rxa7 {[%clk 0:01:07.2]} 28... Kxa7 {[%clk 0:01:01.5]} 29. Nde4 {[%clk
0:01:04.2]} 29... Nxe4 {[%clk 0:00:57.1]} 30. fxe4 {[%clk 0:00:56.5]} 30... Kb8
{[%clk 0:00:54.7]} 31. Ne2 {[%clk 0:00:56]} 31... Kc8 {[%clk 0:00:52.7]} 32. g4
{[%clk 0:00:45.1]} 32... Kd7 {[%clk 0:00:52.4]} 33. Nf4 {[%clk 0:00:39.8]} 33...
Ke7 {[%clk 0:00:51.8]} 34. Nh3 {[%clk 0:00:34]} 34... Kf6 {[%clk 0:00:50.5]} 35.
Kc3 {[%clk 0:00:32.3]} 35... Nd8 {[%clk 0:00:42.1]} 36. Kd3 {[%clk 0:00:31.6]}
36... e5 {[%clk 0:00:40.8]} 37. c5 {[%clk 0:00:20.5]} 37... dxc5 {[%clk
0:00:29.9]} 38. dxc5 {[%clk 0:00:17.6]} 38... Nb7 {[%clk 0:00:23.7]} 39. c6
{[%clk 0:00:14.5]} 39... Nc5+ {[%clk 0:00:22.4]} 40. Kc4 {[%clk 0:00:13.6]}
40... Nxe4 {[%clk 0:00:22.1]} 41. Kd5 {[%clk 0:00:09.2]} 41... Nc3+ {[%clk
0:00:21.3]} 42. Kc4 {[%clk 0:00:09.6]} 42... Ne2 {[%clk 0:00:19.2]} 43. Nf2
{[%clk 0:00:07.5]} 43... Ke6 {[%clk 0:00:16.6]} 44. Nd3 {[%clk 0:00:06.8]} 44...
Ng3 {[%clk 0:00:12.4]} 45. Nb4 {[%clk 0:00:06.5]} 45... Ne4 {[%clk 0:00:11.5]}
46. Na6 {[%clk 0:00:04.9]} 46... Nd6+ {[%clk 0:00:11.7]} 47. Kb4 {[%clk
0:00:04.8]} 47... Ne8 {[%clk 0:00:12.3]} 48. e4 {[%clk 0:00:02.5]} 48... Kd6
{[%clk 0:00:10.6]} 49. Kc4 {[%clk 0:00:03]} 49... Nf6 {[%clk 0:00:10.3]} 50. Nb8
{[%clk 0:00:02.6]} 50... Nxe4 {[%clk 0:00:09.7]} 51. Nd7 {[%clk 0:00:03.5]}
51... Nf6 {[%clk 0:00:07.5]} 52. Nf8 {[%clk 0:00:03.5]} 52... Nxg4 {[%clk
0:00:06.3]} 53. Nd7 {[%clk 0:00:02.5]} 53... Nf6 {[%clk 0:00:05.6]} 54. Nb8
{[%clk 0:00:02.9]} 54... g5 {[%clk 0:00:04]} 55. Na6 {[%clk 0:00:03.1]} 55... h5
{[%clk 0:00:03.9]} 56. Nb4 {[%clk 0:00:03.9]} 56... g4 {[%clk 0:00:03.4]} 57.
Nc2 {[%clk 0:00:04.6]} 57... h4 {[%clk 0:00:03.6]} 58. Ne3 {[%clk 0:00:05.2]}
58... g3 {[%clk 0:00:03]} 59. Nf5+ {[%clk 0:00:05.6]} 59... Ke6 {[%clk
0:00:02.2]} 60. Nxh4 {[%clk 0:00:06.5]} 60... Ng4 {[%clk 0:00:02.7]} 61. Nf3
{[%clk 0:00:06.8]} 61... Ne3+ {[%clk 0:00:03]} 62. Kd3 {[%clk 0:00:04.8]} 62...
Nxg2 {[%clk 0:00:03.9]} 63. Ng5+ {[%clk 0:00:04.7]} 63... Kf5 {[%clk 0:00:03.9]}
64. Ne4 {[%clk 0:00:05.4]} 64... Nf4+ {[%clk 0:00:04]} 65. Ke3 {[%clk
0:00:04.5]} 65... Nd5+ {[%clk 0:00:04.3]} 66. Kd3 {[%clk 0:00:03.7]} 66... Ke6
{[%clk 0:00:04.7]} 67. Nxg3 {[%clk 0:00:03.7]} 67... f5 {[%clk 0:00:04.8]} 68.
Kc4 {[%clk 0:00:04.1]} 68... e4 {[%clk 0:00:04.6]} 69. Ne2 {[%clk 0:00:03.6]}
69... Ne3+ {[%clk 0:00:04.5]} 70. Kd4 {[%clk 0:00:03.3]} 70... Nc2+ {[%clk
0:00:04.8]} 71. Kc3 {[%clk 0:00:03.7]} 71... Ne3 {[%clk 0:00:05.4]} 72. Kd4
{[%clk 0:00:02.6]} 72... Ng4 {[%clk 0:00:05.2]} 73. Nf4+ {[%clk 0:00:02.5]}
73... Kd6 {[%clk 0:00:05.9]} 74. Nd5 {[%clk 0:00:02.8]} 74... e3 {[%clk
0:00:06]} 75. Nc3 {[%clk 0:00:01.7]} 75... f4 {[%clk 0:00:06.1]} 76. Ne4+ {[%clk
0:00:01.8]} 76... Ke6 {[%clk 0:00:05.9]} 77. Ng5+ {[%clk 0:00:01.9]} 77... Kf5
{[%clk 0:00:05.9]} 78. Nf3 {[%clk 0:00:01.2]} 78... e2 {[%clk 0:00:06.2]} 79.
Kd5 {[%clk 0:00:01.7]} 79... Ne3+ {[%clk 0:00:05.9]} 0-1

[Event "Late-Titled-Tuesday-Blitz-February-06-2024"]
[Site "Chess.com"]
[Date "2024.02.06"]
[Round "9"]
[White "varunkrishnanchess"]
[Black "YouShallNotPass001"]
[Result "0-1"]
[WhiteElo "2620"]
[BlackElo "2490"]
[TimeControl "180+1"]
[EndTime "15:46:36 PST"]
[Termination "YouShallNotPass001 won by checkmate"]

1. d4 {[%clk 0:03:00.9]} 1... Nf6 {[%clk 0:03:00.9]} 2. c4 {[%clk 0:02:38.4]}
2... e6 {[%clk 0:03:01.8]} 3. Nf3 {[%clk 0:02:36.4]} 3... c5 {[%clk 0:03:02.7]}
4. Nc3 {[%clk 0:02:35.6]} 4... cxd4 {[%clk 0:03:02.1]} 5. Nxd4 {[%clk
0:02:36.5]} 5... a6 {[%clk 0:03:02.4]} 6. g3 {[%clk 0:02:34.8]} 6... Qc7 {[%clk
0:03:03]} 7. Bg2 {[%clk 0:02:34.9]} 7... d6 {[%clk 0:03:03.5]} 8. O-O {[%clk
0:02:35]} 8... Qxc4 {[%clk 0:03:00.7]} 9. Bg5 {[%clk 0:02:30.6]} 9... Nbd7
{[%clk 0:02:37.3]} 10. Rc1 {[%clk 0:02:29.8]} 10... Qb4 {[%clk 0:02:31.2]} 11.
Qd2 {[%clk 0:02:15.2]} 11... Be7 {[%clk 0:02:29]} 12. a3 {[%clk 0:02:08.3]}
12... Qb6 {[%clk 0:02:27.9]} 13. Na4 {[%clk 0:02:05.9]} 13... Qd8 {[%clk
0:02:23.3]} 14. Rc2 {[%clk 0:01:56.2]} 14... O-O {[%clk 0:02:18.6]} 15. Rfc1
{[%clk 0:01:56]} 15... h6 {[%clk 0:02:04.3]} 16. Be3 {[%clk 0:01:55.8]} 16... d5
{[%clk 0:01:45.8]} 17. b4 {[%clk 0:01:46.2]} 17... b5 {[%clk 0:01:35.1]} 18. Nc6
{[%clk 0:01:43.6]} 18... Qe8 {[%clk 0:01:35.4]} 19. Nb6 {[%clk 0:01:32.5]} 19...
Nxb6 {[%clk 0:01:27.2]} 20. Nxe7+ {[%clk 0:01:32.2]} 20... Qxe7 {[%clk
0:01:26.1]} 21. Bxb6 {[%clk 0:01:32.7]} 21... Nd7 {[%clk 0:01:21.3]} 22. Rc7
{[%clk 0:01:24.1]} 22... Qe8 {[%clk 0:00:46.6]} 23. Bd4 {[%clk 0:01:20.1]} 23...
Qd8 {[%clk 0:00:38.4]} 24. Bb2 {[%clk 0:01:10.3]} 24... Nf6 {[%clk 0:00:29.1]}
25. e4 {[%clk 0:00:55.5]} 25... Nxe4 {[%clk 0:00:25]} 26. Qd4 {[%clk 0:00:48.5]}
26... Qf6 {[%clk 0:00:17.5]} 27. f3 {[%clk 0:00:18.9]} 27... Qxd4+ {[%clk
0:00:17.7]} 28. Bxd4 {[%clk 0:00:19.8]} 28... Nd6 {[%clk 0:00:12.6]} 29. Bc5
{[%clk 0:00:18.5]} 29... Nc4 {[%clk 0:00:13.1]} 30. Bxf8 {[%clk 0:00:17.7]}
30... Kxf8 {[%clk 0:00:13.7]} 31. f4 {[%clk 0:00:14.4]} 31... Ke8 {[%clk
0:00:13.5]} 32. f5 {[%clk 0:00:13.9]} 32... Bd7 {[%clk 0:00:13.1]} 33. fxe6
{[%clk 0:00:10.7]} 33... fxe6 {[%clk 0:00:14]} 34. Rf1 {[%clk 0:00:09.3]} 34...
Kd8 {[%clk 0:00:13.9]} 35. Rf8+ {[%clk 0:00:04.7]} 35... Kxc7 {[%clk 0:00:13.2]}
36. Rxa8 {[%clk 0:00:05.6]} 36... Nxa3 {[%clk 0:00:13]} 37. Rxa6 {[%clk
0:00:04.6]} 37... Nc2 {[%clk 0:00:13.5]} 38. Ra7+ {[%clk 0:00:03.9]} 38... Kd6
{[%clk 0:00:13.3]} 39. Ra8 {[%clk 0:00:02.8]} 39... Ke7 {[%clk 0:00:13.1]} 40.
Kf2 {[%clk 0:00:02.4]} 40... Nxb4 {[%clk 0:00:12.9]} 41. Rg8 {[%clk 0:00:03]}
41... Kf7 {[%clk 0:00:12.5]} 42. Rd8 {[%clk 0:00:03.7]} 42... Be8 {[%clk
0:00:08.7]} 43. Rb8 {[%clk 0:00:04]} 43... Nd3+ {[%clk 0:00:07.9]} 44. Ke3
{[%clk 0:00:04.3]} 44... Ne5 {[%clk 0:00:06.8]} 45. Bf1 {[%clk 0:00:04.5]} 45...
Nc4+ {[%clk 0:00:06.8]} 46. Kd4 {[%clk 0:00:04.8]} 46... Bc6 {[%clk 0:00:06.3]}
47. Kc5 {[%clk 0:00:04.9]} 47... Be8 {[%clk 0:00:06.2]} 48. Rb7+ {[%clk
0:00:04.6]} 48... Kf6 {[%clk 0:00:06.2]} 49. Kd4 {[%clk 0:00:04.5]} 49... Bf7
{[%clk 0:00:05]} 50. Rb8 {[%clk 0:00:04.6]} 50... Nd6 {[%clk 0:00:05.2]} 51. Kc5
{[%clk 0:00:04.4]} 51... Ne4+ {[%clk 0:00:04.5]} 52. Kd4 {[%clk 0:00:04.6]}
52... Nd2 {[%clk 0:00:04.2]} 53. Bxb5 {[%clk 0:00:04.3]} 53... Nf3+ {[%clk
0:00:04.7]} 54. Ke3 {[%clk 0:00:04.4]} 54... Nxh2 {[%clk 0:00:05.3]} 55. Be2
{[%clk 0:00:04.2]} 55... h5 {[%clk 0:00:04.4]} 56. Rh8 {[%clk 0:00:03.7]} 56...
Ng4+ {[%clk 0:00:04.7]} 57. Bxg4 {[%clk 0:00:03.4]} 57... hxg4 {[%clk
0:00:05.6]} 58. Kf4 {[%clk 0:00:03.8]} 58... d4 {[%clk 0:00:05.3]} 59. Rd8
{[%clk 0:00:03.3]} 59... e5+ {[%clk 0:00:04.5]} 60. Kxg4 {[%clk 0:00:03.6]}
60... Be6+ {[%clk 0:00:03.6]} 61. Kf3 {[%clk 0:00:04]} 61... Bf5 {[%clk
0:00:04]} 62. Rd6+ {[%clk 0:00:03.7]} 62... Ke7 {[%clk 0:00:03.8]} 63. Rd5
{[%clk 0:00:03]} 63... Ke6 {[%clk 0:00:02.5]} 64. Rd8 {[%clk 0:00:03.4]} 64...
g5 {[%clk 0:00:02.7]} 65. g4 {[%clk 0:00:03.6]} 65... e4+ {[%clk 0:00:01.8]} 66.
Kg3 {[%clk 0:00:03.8]} 66... Bg6 {[%clk 0:00:02.4]} 67. Rxd4 {[%clk 0:00:04.4]}
67... Ke5 {[%clk 0:00:03]} 68. Ra4 {[%clk 0:00:04.7]} 68... Bf7 {[%clk
0:00:03.5]} 69. Kf2 {[%clk 0:00:04.6]} 69... Bd5 {[%clk 0:00:02.3]} 70. Rb4
{[%clk 0:00:05]} 70... Be6 {[%clk 0:00:02.8]} 71. Kg3 {[%clk 0:00:04.9]} 71...
Bd5 {[%clk 0:00:03]} 72. Rb5 {[%clk 0:00:05.2]} 72... Kd4 {[%clk 0:00:03.1]} 73.
Rb4+ {[%clk 0:00:05.2]} 73... Bc4 {[%clk 0:00:03.4]} 74. Rb8 {[%clk 0:00:04.3]}
74... e3 {[%clk 0:00:03.5]} 75. Rd8+ {[%clk 0:00:04.4]} 75... Bd5 {[%clk
0:00:04.2]} 76. Re8 {[%clk 0:00:04]} 76... Kd3 {[%clk 0:00:04.3]} 77. Rd8 {[%clk
0:00:04.5]} 77... Ke4 {[%clk 0:00:04.8]} 78. Re8+ {[%clk 0:00:04.8]} 78... Kd3
{[%clk 0:00:05.4]} 79. Re5 {[%clk 0:00:04.7]} 79... Be4 {[%clk 0:00:05.5]} 80.
Rxg5 {[%clk 0:00:04.1]} 80... e2 {[%clk 0:00:05.5]} 81. Kf2 {[%clk 0:00:03.8]}
81... Kd2 {[%clk 0:00:03.4]} 82. Kg3 {[%clk 0:00:04]} 82... e1=Q+ {[%clk
0:00:03.5]} 83. Kf4 {[%clk 0:00:04.6]} 83... Qe3+ {[%clk 0:00:04.1]} 84. Ke5
{[%clk 0:00:05]} 84... Qxg5+ {[%clk 0:00:04.5]} 85. Kxe4 {[%clk 0:00:05.9]}
85... Qxg4+ {[%clk 0:00:05.1]} 86. Kd5 {[%clk 0:00:06.8]} 86... Qe2 {[%clk
0:00:05.3]} 87. Kd6 {[%clk 0:00:06.6]} 87... Qd3+ {[%clk 0:00:06.2]} 88. Kc6
{[%clk 0:00:07.4]} 88... Ke3 {[%clk 0:00:06.7]} 89. Kc7 {[%clk 0:00:08.3]} 89...
Qd4 {[%clk 0:00:07.4]} 90. Kb7 {[%clk 0:00:09.2]} 90... Ke4 {[%clk 0:00:08.1]}
91. Kb8 {[%clk 0:00:10.1]} 91... Qd5 {[%clk 0:00:08.9]} 92. Kc7 {[%clk
0:00:10.3]} 92... Ke5 {[%clk 0:00:09.8]} 93. Kb8 {[%clk 0:00:11.2]} 93... Qd6+
{[%clk 0:00:10.3]} 94. Kb7 {[%clk 0:00:11.6]} 94... Ke6 {[%clk 0:00:10.6]} 95.
Kc8 {[%clk 0:00:12.1]} 95... Qe7 {[%clk 0:00:10.3]} 96. Kb8 {[%clk 0:00:12.3]}
96... Kd6 {[%clk 0:00:11.2]} 97. Ka8 {[%clk 0:00:13.2]} 97... Kc6 {[%clk
0:00:12.1]} 98. Kb8 {[%clk 0:00:14.1]} 98... Qb7# {[%clk 0:00:12]} 0-1